bitfinex-derivatives/quotes_BNBF0:USTF0_20250510
["timestamp","ask_amount","ask_price","bid_price","bid_amount"]
[1746863123937,0.24471247,664.12,663.65,0.30136367]
[1746863124337,0.24471247,664.11,663.65,0.30136367]
[1746863124737,0.24471247,664.1,663.65,0.30136367]
[1746863125041,0.24471247,664.09,663.65,0.30136367]
[1746863125438,0.24471247,664.08,663.65,0.30136367]
[1746863125844,0.24471247,664.07,663.65,0.30136367]
[1746863126338,0.24471247,664.06,663.65,0.30136367]
[1746863127137,0.24471247,664.05,663.65,0.30136367]
[1746863127441,0.24471247,664.04,663.65,0.30136367]
[1746863127842,0.24471247,664.03,663.65,0.30136367]
[1746863128244,0.24471247,664.13,663.65,0.30136367]
[1746863128942,1.96279585,664.09,663.65,0.30136367]
[1746863129342,0.24471247,664.08,663.65,0.30136367]
[1746863130844,0.26225752,664.07,663.65,0.30136367]
[1746863131344,0.24471247,664.06,663.65,0.30136367]
[1746863133944,0.26225061,664.05,663.65,0.30136367]
[1746863134446,0.24471247,664.04,663.65,0.30136367]
[1746863136941,0.26225258,664.03,663.65,0.30136367]
[1746863137548,0.24471247,664.02,663.65,0.30136367]
[1746863139842,0.26225061,664.01,663.65,0.30136367]
[1746863140346,0.24471247,664.0,663.65,0.30136367]
[1746863142847,0.26225061,663.99,663.65,0.30136367]
[1746863143150,0.24471247,663.98,663.65,0.30136367]
[1746863144951,0.24471247,663.98,663.65,0.29195469]
[1746863145251,0.26225061,663.99,663.65,0.29195469]
[1746863145452,0.30113225,664.16,663.65,0.29195469]
[1746863145652,0.24465488,663.98,663.65,0.29195469]
[1746863146047,0.50688869,664.15,663.65,0.29195469]
[1746863146353,0.24465488,664.14,663.65,0.29195469]
[1746863146954,0.30114585,664.13,663.65,0.29195469]
[1746863147555,0.24465488,664.12,663.65,0.29195469]
[1746863149259,0.26229212,664.11,663.65,0.29195469]
[1746863149757,0.24465488,664.1,663.65,0.29195469]
[1746863151654,0.24465488,664.12,663.65,0.29195469]
[1746863151860,0.30115492,664.11,663.65,0.29195469]
[1746863152159,0.24465488,664.1,663.65,0.29195469]
[1746863152359,0.30116399,664.09,663.65,0.29195469]
[1746863152855,0.24465488,664.08,663.65,0.29195469]
[1746863153659,0.30117306,664.07,663.65,0.29195469]
[1746863153959,0.24465488,664.06,663.65,0.29195469]
[1746863154355,0.30118213,664.05,663.65,0.29195469]
[1746863155062,0.26229607,664.04,663.65,0.29195469]
[1746863155361,0.50695095,664.04,663.65,0.29195469]
[1746863155554,0.54584609,664.03,663.65,0.29195469]
[1746863155862,0.24465488,664.02,663.65,0.29195469]
[1746863156162,0.30120028,664.01,663.65,0.29195469]
[1746863156460,0.24465488,664.0,663.65,0.29195469]
[1746863156760,0.30120935,663.99,663.65,0.29195469]
[1746863157255,0.24465488,663.98,663.65,0.29195469]
[1746863157762,0.30121842,663.97,663.65,0.29195469]
[1746863157963,0.56353921,663.97,663.65,0.29195469]
[1746863158861,0.24433048,663.96,663.65,0.29195469]
[1746863160262,0.3012275,663.95,663.65,0.29195469]
[1746863162366,0.24433048,663.94,663.65,0.29195469]
[1746863166070,0.24433048,663.94,663.54,0.351]
[1746863169769,0.26233759,663.93,663.54,0.351]
[1746863170168,0.24433048,663.92,663.54,0.351]
[1746863172470,0.24433048,663.94,663.54,0.351]
[1746863172774,0.26233759,663.91,663.54,0.351]
[1746863173173,0.24433048,663.9,663.54,0.351]
[1746863175676,0.24433048,663.94,663.41,0.53]
[1746863175876,0.26233759,663.89,663.41,0.53]
[1746863176476,0.24433048,663.88,663.41,0.53]
[1746863176679,0.3012638,663.87,663.41,0.53]
[1746863177179,0.24433048,663.86,663.41,0.53]
[1746863177477,0.30127287,663.85,663.41,0.53]
[1746863177777,0.30127287,663.85,663.42,0.536]
[1746863178178,0.24433048,663.84,663.42,0.536]
[1746863178374,0.30128195,663.83,663.42,0.536]
[1746863178575,0.56362844,663.83,663.42,0.536]
[1746863178877,0.24433048,663.82,663.42,0.536]
[1746863179977,0.30129103,663.81,663.42,0.536]
[1746863181480,0.26226444,663.8,663.42,0.536]
[1746863183281,0.24428497,663.79,663.42,0.536]
[1746863184581,0.2623109,663.78,663.42,0.536]
[1746863184882,0.24428497,663.77,663.42,0.536]
[1746863187481,0.24428497,663.8,663.42,0.536]
[1746863187684,0.2623109,663.76,663.42,0.536]
[1746863188082,0.24428497,663.75,663.42,0.536]
[1746863188582,0.2623109,663.76,663.42,0.536]
[1746863188982,0.24428101,663.75,663.42,0.536]
[1746863190583,0.2623109,663.74,663.42,0.536]
[1746863190886,0.24428101,663.73,663.42,0.536]
[1746863193386,0.24428101,663.8,663.42,0.536]
[1746863193688,0.26228915,663.72,663.42,0.536]
[1746863196191,0.30129103,663.81,663.42,0.536]
[1746863196490,0.24425449,663.8,663.42,0.536]
[1746863196691,0.5064715,663.8,663.42,0.536]
[1746863197390,0.24425449,663.79,663.42,0.536]
[1746863197789,0.24425449,663.79,663.41,0.53]
[1746863199691,0.24425449,663.8,663.41,0.53]
[1746863199893,0.26229014,663.78,663.42,0.461]
[1746863200491,0.24425449,663.77,663.42,0.461]
[1746863200692,0.26229014,663.78,663.42,0.461]
[1746863201193,0.244254,663.77,663.42,0.461]
[1746863202693,0.244254,663.8,663.42,0.461]
[1746863202992,0.26229014,663.76,663.42,0.461]
[1746863203393,0.244254,663.75,663.42,0.461]
[1746863205597,0.26229014,663.74,663.42,0.461]
[1746863208198,0.30129103,663.81,663.42,0.461]
[1746863208599,0.26234748,663.8,663.42,0.461]
[1746863208799,0.50660111,663.8,663.42,0.461]
[1746863209199,0.24425363,663.79,663.43,0.517]
[1746863211699,0.24425363,663.8,663.43,0.517]
[1746863211901,0.26228915,663.78,663.43,0.517]
[1746863212697,0.24425363,663.77,663.43,0.517]
[1746863214705,0.24425363,663.8,663.43,0.517]
[1746863214905,0.26228915,663.76,663.43,0.517]
[1746863215205,0.24425363,663.75,663.43,0.517]
[1746863217601,0.26228915,663.74,663.43,0.517]
[1746863220307,0.30129103,663.81,663.43,0.517]
[1746863220605,0.26226543,663.73,663.43,0.517]
[1746863220903,0.30129103,663.81,663.43,0.517]
[1746863221606,0.26220121,663.8,663.43,0.517]
[1746863223214,0.30129103,663.81,663.43,0.517]
[1746863223606,0.26227334,663.79,663.43,0.517]
[1746863226206,0.30129103,663.81,663.43,0.517]
[1746863226813,0.26221701,663.8,663.43,0.517]
[1746863227012,0.50645068,663.8,663.43,0.517]
[1746863227404,0.24423367,663.79,663.43,0.517]
[1746863229214,0.26221701,663.8,663.43,0.517]
[1746863229714,0.24425126,663.79,663.43,0.517]
[1746863232514,0.26230299,663.78,663.43,0.517]
[1746863233013,0.24425126,663.77,663.43,0.517]
[1746863235710,0.24425126,663.8,663.43,0.517]
[1746863235907,0.26230299,663.76,663.43,0.517]
[1746863236713,0.24425126,663.75,663.43,0.517]
[1746863237815,0.24425126,663.75,663.43,0.987]
[1746863238719,0.262302,663.74,663.43,0.987]
[1746863239014,0.24425126,663.73,663.43,0.987]
[1746863242922,0.262302,663.74,663.43,0.987]
[1746863243424,0.24424622,663.73,663.43,0.987]
[1746863244518,0.24424622,663.8,663.43,0.987]
[1746863244721,0.262302,663.72,663.43,0.987]
[1746863245125,0.24424622,663.71,663.43,0.987]
[1746863247822,0.262302,663.7,663.43,0.987]
[1746863248023,0.24424622,663.69,663.43,0.987]
[1746863250426,0.262302,663.7,663.43,0.987]
[1746863253225,0.30129103,663.81,663.43,0.987]
[1746863253826,0.26222393,663.8,663.43,0.987]
[1746863256327,0.30129103,663.81,663.43,0.987]
[1746863256724,0.26230002,663.79,663.43,0.987]
[1746863257726,0.24424474,663.78,663.43,0.987]
[1746863258026,0.26230002,663.79,663.43,0.987]
[1746863258326,0.24425085,663.78,663.43,0.987]
[1746863261326,0.26230002,663.79,663.43,0.987]
[1746863262129,0.30129103,663.81,663.43,0.987]
[1746863262629,0.26219627,663.8,663.43,0.987]
[1746863265231,0.30129103,663.81,663.43,0.987]
[1746863265631,0.2622684,663.79,663.43,0.987]
[1746863268134,0.30129103,663.81,663.43,0.987]
[1746863268532,0.26219627,663.8,663.43,0.987]
[1746863271227,0.30129103,663.81,663.43,0.987]
[1746863271630,0.26225061,663.79,663.43,0.987]
[1746863274134,0.30096006,664.54,663.43,0.987]
[1746863274334,0.30096912,664.52,663.43,0.987]
[1746863274728,0.24413594,664.51,663.43,0.987]
[1746863274933,0.30097817,664.5,663.43,0.987]
[1746863275236,0.24413594,664.49,663.43,0.987]
[1746863275934,0.30098723,664.48,663.43,0.987]
[1746863277537,0.24413594,664.47,663.43,0.987]
[1746863277738,0.50627987,664.47,663.43,0.987]
[1746863278139,0.24413594,664.46,663.43,0.987]
[1746863283143,0.30098723,664.48,663.43,0.987]
[1746863283345,0.24412936,664.47,663.43,0.987]
[1746863283645,0.50629995,664.47,663.43,0.987]
[1746863283845,0.30100082,664.45,663.43,0.987]
[1746863285249,0.24412936,664.44,663.43,0.987]
[1746863286550,0.30100988,664.43,663.43,0.987]
[1746863286749,0.24412936,664.42,663.43,0.987]
[1746863287050,0.56317356,664.43,663.43,0.987]
[1746863287447,0.24410482,664.42,663.43,0.987]
[1746863289853,0.26217355,664.41,663.43,0.987]
[1746863290453,0.24410482,664.4,663.43,0.987]
[1746863292554,0.26217355,664.39,663.43,0.987]
[1746863293050,0.24410482,664.38,663.43,0.987]
[1746863293455,0.26217355,664.39,663.43,0.987]
[1746863293955,0.24410254,664.38,663.43,0.987]
[1746863295254,0.26217355,664.39,663.43,0.987]
[1746863297150,0.24405665,664.38,663.43,0.987]
[1746863298760,0.26213998,664.37,663.43,0.987]
[1746863299058,0.24405665,664.36,663.43,0.987]
[1746863301659,0.26213011,664.35,663.43,0.987]
[1746863302358,0.24405665,664.34,663.43,0.987]
[1746863303553,0.26213011,664.35,663.43,0.987]
[1746863303862,0.2440483,664.34,663.43,0.987]
[1746863304559,0.26213011,664.33,663.43,0.987]
[1746863304961,0.2440483,664.32,663.43,0.987]
[1746863309965,0.30106879,664.3,663.43,0.987]
[1746863310165,0.30106879,664.3,662.61,0.95247697]
[1746863310363,0.2440483,664.29,662.61,0.95247697]
[1746863310563,0.30108239,664.27,662.61,0.95247697]
[1746863310864,0.30108239,664.27,662.65,0.95247697]
[1746863311164,0.2440483,664.26,662.65,0.95247697]
[1746863311365,0.30109598,664.24,662.65,0.95247697]
[1746863311864,0.2440483,664.23,662.65,0.95247697]
[1746863312064,0.30110958,664.21,662.65,0.95247697]
[1746863312465,0.30110958,664.21,662.66,0.569]
[1746863312666,0.2440483,664.2,662.66,0.569]
[1746863312866,0.30112318,664.18,662.66,0.569]
[1746863313267,0.2440483,664.17,662.66,0.569]
[1746863313469,0.30113225,664.16,662.66,0.569]
[1746863313669,0.56348764,664.16,662.66,0.569]
[1746863313971,0.56348764,664.16,662.67,0.362]
[1746863314173,0.2440483,664.15,662.67,0.362]
[1746863314370,0.30114585,664.13,662.67,0.362]
[1746863314769,0.2440483,664.12,662.67,0.362]
[1746863314971,0.30115946,664.1,662.67,0.362]
[1746863315170,0.2440483,664.09,662.67,0.362]
[1746863315469,0.30117306,664.07,662.67,0.362]
[1746863316070,0.2440483,664.06,662.67,0.362]
[1746863316272,0.30118667,664.04,662.67,0.362]
[1746863316571,0.26238012,664.03,662.67,0.362]
[1746863316773,0.30119574,664.02,662.67,0.362]
[1746863317170,0.2440483,664.01,662.67,0.362]
[1746863317368,0.30120481,664.0,662.67,0.362]
[1746863317669,0.2440483,663.99,662.67,0.362]
[1746863317870,0.30121389,663.98,662.67,0.362]
[1746863318573,0.2440483,663.97,662.67,0.362]
[1746863318775,0.30122296,663.96,662.67,0.362]
[1746863319278,0.2440483,663.95,662.67,0.362]
[1746863319572,0.30123203,663.94,662.67,0.362]
[1746863319971,0.2440483,663.93,662.67,0.362]
[1746863320478,0.30124111,663.92,662.67,0.362]
[1746863320779,0.2440483,663.91,662.67,0.362]
[1746863320977,0.30125018,663.9,662.67,0.362]
[1746863321479,0.2440483,663.89,662.67,0.362]
[1746863321680,0.30125926,663.88,662.67,0.362]
[1746863322277,0.2440483,663.87,662.67,0.362]
[1746863322477,0.30126833,663.86,662.67,0.362]
[1746863322980,0.2440483,663.85,662.67,0.362]
[1746863323176,0.30127741,663.84,662.67,0.362]
[1746863323578,0.2440483,663.83,662.67,0.362]
[1746863325781,0.262391,663.82,662.67,0.362]
[1746863326381,0.2440483,663.81,662.67,0.362]
[1746863328686,0.26251867,663.8,662.67,0.362]
[1746863329087,0.2440483,663.79,662.67,0.362]
[1746863329287,0.2440483,663.79,662.68,0.534]
[1746863331589,0.2440483,663.83,662.68,0.534]
[1746863331890,0.26238902,663.78,662.68,0.534]
[1746863332084,0.2440483,663.77,662.68,0.534]
[1746863334785,0.26238902,663.76,662.68,0.534]
[1746863335292,0.2440483,663.75,662.68,0.534]
[1746863335590,0.26238902,663.76,662.68,0.534]
[1746863337291,0.30127741,663.84,662.68,0.534]
[1746863337888,0.26239496,663.83,662.68,0.534]
[1746863340294,0.30127741,663.84,662.68,0.534]
[1746863340790,0.26237122,663.83,662.68,0.534]
[1746863343192,0.30127741,663.84,662.68,0.534]
[1746863343396,0.24427656,663.83,662.68,0.534]
[1746863343797,0.26238309,663.82,662.68,0.534]
[1746863346298,0.30127741,663.84,662.68,0.534]
[1746863346498,0.26238704,663.81,662.68,0.534]
[1746863349302,0.30127741,663.84,662.68,0.534]
[1746863349701,0.26238507,663.83,662.68,0.534]
[1746863352300,0.30127741,663.84,662.68,0.534]
[1746863352604,0.26238111,663.83,662.68,0.534]
[1746863352905,0.24428113,663.82,662.68,0.534]
[1746863355504,0.24428113,663.83,662.68,0.534]
[1746863355705,0.26238309,663.81,662.68,0.534]
[1746863356006,0.24428113,663.8,662.68,0.534]
[1746863358509,0.24428113,663.83,662.68,0.534]
[1746863358709,0.26238309,663.79,662.68,0.534]
[1746863358904,0.24428113,663.78,662.68,0.534]
[1746863361511,0.24428113,663.83,662.68,0.534]
[1746863361705,0.26238309,663.77,662.68,0.534]
[1746863362015,0.24428113,663.76,662.68,0.534]
[1746863362212,0.26238309,663.77,662.68,0.534]
[1746863364213,0.30127741,663.84,662.68,0.534]
[1746863364815,0.26238111,663.83,662.68,0.534]
[1746863366217,0.24427712,663.82,662.68,0.534]
[1746863367611,0.24427712,663.83,662.68,0.534]
[1746863367816,0.26238309,663.81,662.68,0.534]
[1746863368114,0.24427712,663.8,662.68,0.534]
[1746863370518,0.30127741,663.84,662.68,0.534]
[1746863370519,0.24427712,663.83,662.68,0.534]
[1746863370712,0.50666021,663.79,662.68,0.534]
[1746863370916,0.26238309,663.79,662.68,0.991]
[1746863371116,0.24427712,663.78,662.68,0.991]
[1746863373616,0.24427712,663.83,662.68,0.991]
[1746863373821,0.26238309,663.77,662.68,0.991]
[1746863374119,0.24427712,663.76,662.68,0.991]
[1746863376124,0.26238309,663.77,662.68,0.991]
[1746863376322,0.30127741,663.84,662.68,0.991]
[1746863376919,0.26238507,663.83,662.68,0.991]
[1746863379326,0.30127741,663.84,662.68,0.991]
[1746863379726,0.26238704,663.82,662.68,0.991]
[1746863382428,0.30127741,663.84,662.68,0.991]
[1746863382730,0.26238704,663.81,662.68,0.991]
[1746863384929,0.24428996,663.8,662.68,0.991]
[1746863385530,0.30127741,663.84,662.68,0.991]
[1746863385730,0.26238704,663.79,662.68,0.991]
[1746863385926,0.24429015,663.78,662.68,0.991]
[1746863386531,0.26238704,663.79,662.68,0.991]
[1746863388233,0.30127741,663.84,662.68,0.991]
[1746863388527,0.26234748,663.78,662.68,0.991]
[1746863391229,0.30127741,663.84,662.68,0.991]
[1746863391734,0.2623455,663.83,662.68,0.991]
[1746863394228,1.96279585,665.22,662.68,0.991]
[1746863394433,0.24422614,665.21,662.68,0.991]
[1746863394629,0.24422614,665.2,662.68,0.991]
[1746863394929,0.26221109,665.21,662.68,0.991]
[1746863396336,1.96279585,665.19,662.68,0.991]
[1746863397635,0.262218,665.18,662.68,0.991]
[1746863398435,1.96279585,664.93,662.68,0.991]
[1746863400637,3.92789084,667.84,662.68,0.991]
[1746863400638,1.96279585,664.94,662.68,0.991]
[1746863400834,0.26224962,664.92,662.68,0.991]
[1746863402635,2.22504547,664.92,662.68,0.991]
[1746863405932,1.96279585,664.79,662.68,0.991]
[1746863407339,0.26226938,664.78,662.68,0.991]
[1746863409241,1.96279585,664.84,662.68,0.991]
[1746863409635,0.26224073,664.83,662.68,0.991]
[1746863410041,0.5064765,664.83,662.68,0.991]
[1746863410342,0.26224073,664.83,662.68,0.991]
[1746863410538,0.24423037,664.82,662.68,0.991]
[1746863410741,0.24423037,664.81,662.68,0.991]
[1746863410943,0.24423037,664.8,662.68,0.991]
[1746863411136,0.24423037,664.79,662.68,0.991]
[1746863411343,0.24423037,664.78,662.68,0.991]
[1746863411543,0.24423037,664.77,662.68,0.991]
[1746863411743,0.24423037,664.76,662.68,0.991]
[1746863411943,0.24423037,664.75,662.68,0.991]
[1746863412142,0.24423037,664.74,662.68,0.991]
[1746863412443,0.24423037,664.73,662.68,0.991]
[1746863412642,0.24423037,664.72,662.68,0.991]
[1746863412841,0.24423037,664.71,662.68,0.991]
[1746863413039,0.24423037,664.7,662.68,0.991]
[1746863413244,0.24423037,664.69,662.68,0.991]
[1746863413443,0.24423037,664.68,662.68,0.991]
[1746863413646,0.24423037,664.67,662.68,0.991]
[1746863413947,0.24423037,664.66,662.68,0.991]
[1746863414147,0.26222195,664.73,662.68,0.991]
[1746863414348,0.24418395,664.72,662.69,0.27699658]
[1746863414547,0.24418395,664.71,662.69,0.27699658]
[1746863414747,0.24418395,664.7,662.69,0.27699658]
[1746863414943,0.24418395,664.69,662.7,0.27699658]
[1746863415243,0.24418395,664.68,662.51,0.27699658]
[1746863415447,1.96279585,664.87,662.12,0.95247697]
[1746863415448,0.24418395,664.72,662.52,0.27699658]
[1746863415648,0.24418395,664.71,662.3,0.95247697]
[1746863415849,0.24418395,664.7,662.31,0.27699658]
[1746863416048,0.24418395,664.69,662.31,0.27699658]
[1746863416250,0.24418395,664.68,662.31,0.27699658]
[1746863416550,0.24418395,664.67,662.32,0.2623109]
[1746863416743,0.24418395,664.66,662.33,0.27699658]
[1746863416945,0.24418395,664.65,662.33,0.27699658]
[1746863417146,0.24418395,664.67,662.33,0.27699658]
[1746863417353,0.24418395,664.66,662.34,1.007]
[1746863417551,0.24418395,664.65,662.35,0.27699658]
[1746863417750,0.24418395,664.64,662.35,0.27699658]
[1746863417954,0.24418395,664.67,662.35,0.27699658]
[1746863418151,0.24418395,664.66,662.35,0.27699658]
[1746863418452,0.24418395,664.65,662.35,0.27699658]
[1746863418746,0.24418395,664.64,662.35,0.27699658]
[1746863418948,1.96279585,665.05,662.35,0.27699658]
[1746863418949,0.24418395,664.63,662.35,0.27699658]
[1746863419152,0.24418395,664.62,662.35,0.27699658]
[1746863419352,0.24418395,664.61,662.35,0.27699658]
[1746863419553,0.24418395,664.6,662.35,0.27699658]
[1746863419756,0.24418395,664.59,662.35,0.27699658]
[1746863420048,0.26228124,664.63,662.34,1.007]
[1746863422455,2.22507709,664.63,662.34,1.007]
[1746863422654,0.30096912,664.52,662.36,0.3019506]
[1746863424751,0.26234056,664.51,662.36,0.3019506]
[1746863424956,0.30101894,664.41,662.36,0.3019506]
[1746863427658,0.26241771,664.4,662.36,0.3019506]
[1746863427857,0.30106879,664.3,662.36,0.3019506]
[1746863430658,0.26238408,664.29,662.36,0.3019506]
[1746863430858,0.30108239,664.27,662.36,0.3019506]
[1746863432059,0.30108239,664.27,662.37,0.485]
[1746863433662,0.26242167,664.26,662.37,0.485]
[1746863433860,0.30109598,664.24,662.37,0.485]
[1746863436662,0.26242464,664.23,662.37,0.485]
[1746863437063,0.30110958,664.21,662.37,0.485]
[1746863438260,0.30110958,664.21,662.38,0.513]
[1746863438859,0.24406232,664.2,662.38,0.513]
[1746863439063,0.24406232,664.19,662.38,0.513]
[1746863439265,0.24406232,664.18,662.38,0.513]
[1746863439564,0.24406232,664.17,662.38,0.513]
[1746863439765,0.24406232,664.16,662.38,0.513]
[1746863439964,0.24406232,664.15,662.38,0.513]
[1746863440159,0.24406232,664.14,662.38,0.513]
[1746863440361,0.24406232,664.13,662.38,0.513]
[1746863440565,0.24406232,664.12,662.38,0.513]
[1746863440765,0.24406232,664.11,662.38,0.513]
[1746863440968,0.24406232,664.1,662.38,0.513]
[1746863441167,0.24406232,664.09,662.38,0.513]
[1746863441368,0.24406232,664.08,662.38,0.513]
[1746863441564,0.24406232,664.07,662.38,0.513]
[1746863441769,0.24406232,664.06,662.38,0.513]
[1746863442068,0.24406232,664.05,662.38,0.513]
[1746863442269,0.24406232,664.04,662.38,0.513]
[1746863442470,0.24406232,664.03,662.38,0.513]
[1746863442669,0.24406232,664.02,662.38,0.513]
[1746863442871,0.24406232,664.01,662.38,0.513]
[1746863443066,0.24406232,664.0,662.38,0.513]
[1746863443269,0.24406232,663.99,662.38,0.513]
[1746863443471,0.24406232,663.98,662.38,0.513]
[1746863443666,0.26244443,664.04,662.38,0.513]
[1746863443870,0.24393539,664.03,662.38,0.513]
[1746863444165,0.24393539,664.02,662.38,0.513]
[1746863444377,0.24393481,664.01,662.38,0.513]
[1746863444569,0.24393481,664.0,662.38,0.513]
[1746863444869,0.24393481,663.99,662.38,0.513]
[1746863445070,0.24393481,663.98,662.38,0.513]
[1746863445274,0.26244443,664.04,662.38,0.513]
[1746863445471,0.24393395,664.03,662.38,0.513]
[1746863445772,0.24393395,664.02,662.39,0.552]
[1746863445971,0.24393395,664.01,662.39,0.552]
[1746863446172,0.24393395,664.0,662.39,0.552]
[1746863446368,0.24393395,663.99,662.39,0.552]
[1746863446571,0.24393395,663.98,662.39,0.552]
[1746863446771,0.24393395,663.97,662.39,0.552]
[1746863446973,0.24393395,663.96,662.39,0.552]
[1746863447168,0.26244443,664.04,662.39,0.552]
[1746863447373,0.24393129,664.03,662.39,0.552]
[1746863447572,0.24393129,664.02,662.39,0.552]
[1746863447770,0.24393129,664.01,662.39,0.552]
[1746863447967,0.24393129,664.0,662.39,0.552]
[1746863448166,0.24393129,663.99,662.39,0.552]
[1746863448369,0.24393129,663.98,662.39,0.552]
[1746863448574,0.24393129,663.97,662.39,0.552]
[1746863448768,0.24393129,663.96,662.39,0.552]
[1746863448968,0.26245433,663.97,662.39,0.552]
[1746863449268,0.24393062,663.96,662.39,0.552]
[1746863449473,0.24393062,663.95,662.39,0.552]
[1746863449671,0.24393062,663.94,662.39,0.552]
[1746863449872,0.30124111,663.92,662.39,0.552]
[1746863450072,0.24393062,663.91,662.39,0.552]
[1746863450373,0.30125472,663.89,662.39,0.552]
[1746863450673,0.24393062,663.88,662.39,0.552]
[1746863450974,0.30126833,663.86,662.39,0.552]
[1746863451173,0.2439019,663.85,662.39,0.552]
[1746863451373,0.30128195,663.83,662.39,0.552]
[1746863451570,0.2439019,663.82,662.39,0.552]
[1746863451772,0.30129557,663.8,662.39,0.552]
[1746863451972,0.2439019,663.79,662.39,0.552]
[1746863452169,0.30130918,663.77,662.39,0.552]
[1746863452675,0.24389339,663.76,662.39,0.552]
[1746863452975,0.3013228,663.74,662.39,0.552]
[1746863453174,0.24389339,663.73,662.39,0.552]
[1746863453374,0.30133642,663.71,662.39,0.552]
[1746863453572,0.24389339,663.7,662.39,0.552]
[1746863453773,0.24389339,663.69,662.39,0.552]
[1746863453973,0.30135458,663.67,662.39,0.552]
[1746863454372,0.24389398,663.66,662.39,0.552]
[1746863454670,0.30136821,663.64,662.39,0.552]
[1746863454875,0.24389398,663.63,662.39,0.552]
[1746863455077,0.30138183,663.61,662.39,0.552]
[1746863455372,0.24389398,663.6,662.39,0.552]
[1746863455572,0.30139546,663.58,662.39,0.552]
[1746863455777,0.24389398,663.57,662.39,0.552]
[1746863455971,0.30140454,663.56,662.39,0.552]
[1746863456175,0.24389398,663.55,662.39,0.552]
[1746863456373,0.30141362,663.54,662.39,0.552]
[1746863456578,0.24389398,663.53,662.39,0.552]
[1746863456778,0.30142271,663.52,662.39,0.552]
[1746863457078,0.24389398,663.51,662.39,0.552]
[1746863457375,0.3014318,663.5,662.39,0.552]
[1746863457578,0.24389398,663.49,662.39,0.552]
[1746863457879,0.54530929,663.48,662.39,0.552]
[1746863458073,0.54531384,663.47,662.39,0.552]
[1746863458273,0.24386841,663.46,662.39,0.552]
[1746863458477,0.30145451,663.45,662.39,0.552]
[1746863459380,0.24387233,663.44,662.39,0.552]
[1746863460779,0.2625672,663.43,662.39,0.552]
[1746863460979,0.24387233,663.42,662.39,0.552]
[1746863461576,0.2625672,663.43,662.39,0.552]
[1746863461780,0.24386169,663.42,662.39,0.552]
[1746863461977,0.30147269,663.41,662.39,0.552]
[1746863462181,0.24386169,663.4,662.39,0.552]
[1746863462381,0.54534256,663.39,662.39,0.552]
[1746863462582,0.5453471,663.38,662.39,0.552]
[1746863462878,0.30148632,663.38,662.39,0.552]
[1746863463182,0.24386388,663.37,662.39,0.552]
[1746863463882,0.30149541,663.36,662.39,0.552]
[1746863464082,0.24386388,663.35,662.39,0.552]
[1746863466381,1.96279585,664.04,662.39,0.552]
[1746863466575,0.30119574,664.02,662.39,0.552]
[1746863466776,0.24383868,664.01,662.39,0.552]
[1746863466979,0.30120935,663.99,662.39,0.552]
[1746863467183,0.24383868,663.98,662.39,0.552]
[1746863467986,0.30120935,663.99,662.39,0.552]
[1746863468187,0.24370503,663.98,662.39,0.552]
[1746863468588,0.30122296,663.96,662.39,0.552]
[1746863468786,0.24370503,663.95,662.39,0.552]
[1746863468985,0.30123657,663.93,662.39,0.552]
[1746863469188,0.24370503,663.92,662.39,0.552]
[1746863469385,0.30125018,663.9,662.39,0.552]
[1746863469586,0.24369856,663.89,662.39,0.552]
[1746863469890,0.3012638,663.87,662.39,0.552]
[1746863470193,0.24369856,663.86,662.39,0.552]
[1746863470591,0.30127741,663.84,662.39,0.552]
[1746863470790,0.24369856,663.83,662.39,0.552]
[1746863471091,0.30129103,663.81,662.39,0.552]
[1746863471291,0.24370444,663.8,662.39,0.552]
[1746863471487,0.30130464,663.78,662.39,0.552]
[1746863471687,0.24370444,663.77,662.39,0.552]
[1746863471890,0.30131826,663.75,662.39,0.552]